[Event "*** Titled Tuesday Blitz"]
[Site "Chess.com"]
[Date "2020.11.10"]
[Round "3"]
[White "ChronicUnhappiness"]
[Black "lacafi"]
[Result "1-0"]
[WhiteElo "2318"]
[BlackElo "2116"]
[TimeControl "180+1"]
[EndTime "10:32:45 PST"]
[Termination "ChronicUnhappiness won on time"]

1. c4 {[%clk 0:02:56.8]} 1... f5 {[%clk 0:02:58]} 2. g3 {[%clk 0:02:56.1]} 2...
Nf6 {[%clk 0:02:58.4]} 3. Bg2 {[%clk 0:02:56.8]} 3... g6 {[%clk 0:02:59.1]} 4.
d4 {[%clk 0:02:54.9]} 4... Bg7 {[%clk 0:02:59.8]} 5. Nf3 {[%clk 0:02:55.3]} 5...
O-O {[%clk 0:03:00.4]} 6. O-O {[%clk 0:02:55.8]} 6... d6 {[%clk 0:03:01]} 7. b3
{[%clk 0:02:56]} 7... Nc6 {[%clk 0:02:56.9]} 8. Bb2 {[%clk 0:02:53.4]} 8... Qe8
{[%clk 0:02:56.1]} 9. d5 {[%clk 0:02:48.5]} 9... Nd8 {[%clk 0:02:51.7]} 10. Nd4
{[%clk 0:02:41.4]} 10... e5 {[%clk 0:02:48]} 11. dxe6 {[%clk 0:02:40.9]} 11...
Nxe6 {[%clk 0:02:48.2]} 12. Nxe6 {[%clk 0:02:39.7]} 12... Qxe6 {[%clk 0:02:45]}
13. Nc3 {[%clk 0:02:31.1]} 13... Kh8 {[%clk 0:02:42.6]} 14. Nd5 {[%clk
0:02:26.6]} 14... Nxd5 {[%clk 0:02:38]} 15. Bxg7+ {[%clk 0:02:27.5]} 15... Kxg7
{[%clk 0:02:37.4]} 16. cxd5 {[%clk 0:02:28.2]} 16... Qf7 {[%clk 0:02:32.6]} 17.
e3 {[%clk 0:02:23.2]} 17... b6 {[%clk 0:02:17.5]} 18. Qd4+ {[%clk 0:02:18.3]}
18... Kg8 {[%clk 0:02:16]} 19. Rfc1 {[%clk 0:02:17.2]} 19... Bb7 {[%clk
0:02:03.5]} 20. Rc4 {[%clk 0:02:07.8]} 20... Rac8 {[%clk 0:01:59.4]} 21. Rac1
{[%clk 0:02:06.6]} 21... Rfe8 {[%clk 0:01:48.6]} 22. Qc3 {[%clk 0:01:21.1]}
22... Re7 {[%clk 0:01:41.1]} 23. Rd1 {[%clk 0:00:54.3]} 23... Re5 {[%clk
0:01:31.3]} 24. Rcd4 {[%clk 0:00:44.4]} 24... a5 {[%clk 0:01:23.6]} 25. a3
{[%clk 0:00:43.8]} 25... Ra8 {[%clk 0:01:13.6]} 26. Rc4 {[%clk 0:00:37.7]} 26...
Rc8 {[%clk 0:01:12.6]} 27. Qd2 {[%clk 0:00:33.4]} 27... Kg7 {[%clk 0:01:00.3]}
28. h4 {[%clk 0:00:33.2]} 28... h6 {[%clk 0:00:58.9]} 29. b4 {[%clk 0:00:29.7]}
29... axb4 {[%clk 0:00:58.3]} 30. axb4 {[%clk 0:00:30.6]} 30... Ra8 {[%clk
0:00:56.4]} 31. Qc3 {[%clk 0:00:29.7]} 31... Kh7 {[%clk 0:00:28.6]} 32. Rxc7
{[%clk 0:00:27.4]} 32... Re7 {[%clk 0:00:29.5]} 33. Rc1 {[%clk 0:00:24.2]} 33...
Rae8 {[%clk 0:00:29]} 34. Rxe7 {[%clk 0:00:20.7]} 34... Rxe7 {[%clk 0:00:29.9]}
35. Qd4 {[%clk 0:00:21.2]} 35... Rc7 {[%clk 0:00:27.1]} 36. Rxc7 {[%clk
0:00:19.2]} 36... Qxc7 {[%clk 0:00:26.7]} 37. Qf6 {[%clk 0:00:19.4]} 37... Ba6
{[%clk 0:00:25.1]} 38. h5 {[%clk 0:00:18.7]} 38... gxh5 {[%clk 0:00:22.9]} 39.
Qxf5+ {[%clk 0:00:18.3]} 39... Kg7 {[%clk 0:00:23.5]} 40. Bh3 {[%clk 0:00:17.5]}
40... Qc1+ {[%clk 0:00:21.6]} 41. Kh2 {[%clk 0:00:17.7]} 41... Qb2 {[%clk
0:00:18.7]} 42. Qd7+ {[%clk 0:00:16.8]} 42... Kh8 {[%clk 0:00:16.2]} 43. Qe8+
{[%clk 0:00:16.3]} 43... Kg7 {[%clk 0:00:16.5]} 44. Qe7+ {[%clk 0:00:16.6]}
44... Kh8 {[%clk 0:00:16.7]} 45. Qf7 {[%clk 0:00:14.6]} 45... Qg7 {[%clk
0:00:04.6]} 46. Qe8+ {[%clk 0:00:11.8]} 46... Qg8 {[%clk 0:00:04.3]} 47. Qe6
{[%clk 0:00:11]} 47... Qf8 {[%clk 0:00:03.1]} 48. f4 {[%clk 0:00:09.6]} 48...
Kg7 {[%clk 0:00:02.2]} 49. f5 {[%clk 0:00:09.1]} 49... Bd3 {[%clk 0:00:02.1]}
50. e4 {[%clk 0:00:08.6]} 50... Be2 {[%clk 0:00:01.9]} 51. Qg6+ {[%clk
0:00:08.2]} 51... Kh8 {[%clk 0:00:01.7]} 52. f6 {[%clk 0:00:08.6]} 52... Bg4
{[%clk 0:00:01.9]} 53. Bxg4 {[%clk 0:00:08.4]} 53... hxg4 {[%clk 0:00:02.8]} 54.
Kg2 {[%clk 0:00:07.2]} 54... b5 {[%clk 0:00:03]} 55. Kf2 {[%clk 0:00:06.3]}
55... Qg8 {[%clk 0:00:03.2]} 56. Qxg8+ {[%clk 0:00:05.8]} 56... Kxg8 {[%clk
0:00:03.5]} 57. Ke3 {[%clk 0:00:06.7]} 57... Kf7 {[%clk 0:00:04.1]} 58. Kf4
{[%clk 0:00:07.6]} 58... Kxf6 {[%clk 0:00:04.6]} 59. Kxg4 {[%clk 0:00:08]} 59...
Ke5 {[%clk 0:00:05.2]} 60. Kf3 {[%clk 0:00:08.4]} 60... h5 {[%clk 0:00:05.2]}
61. Ke3 {[%clk 0:00:08.8]} 61... Kf6 {[%clk 0:00:05]} 62. Kf4 {[%clk 0:00:09]}
1-0

[Event "*** Titled Tuesday Blitz"]
[Site "Chess.com"]
[Date "2020.11.10"]
[Round "3"]
[White "Savagelittlemole"]
[Black "SergeyShtyka"]
[Result "1-0"]
[WhiteElo "2585"]
[BlackElo "2382"]
[TimeControl "180+1"]
[EndTime "10:32:47 PST"]
[Termination "Savagelittlemole won by checkmate"]

1. e4 {[%clk 0:03:00.9]} 1... c5 {[%clk 0:02:59.7]} 2. Ne2 {[%clk 0:03:00.4]}
2... Nc6 {[%clk 0:02:59.3]} 3. g3 {[%clk 0:03:00.5]} 3... g6 {[%clk 0:02:59.1]}
4. Bg2 {[%clk 0:03:01]} 4... Bg7 {[%clk 0:02:59.4]} 5. O-O {[%clk 0:03:01.6]}
5... e6 {[%clk 0:02:58.8]} 6. d3 {[%clk 0:02:58.9]} 6... Nge7 {[%clk 0:02:58.2]}
7. f4 {[%clk 0:02:59]} 7... O-O {[%clk 0:02:57.8]} 8. Be3 {[%clk 0:02:56.2]}
8... d6 {[%clk 0:02:57.8]} 9. Nd2 {[%clk 0:02:56.1]} 9... Rb8 {[%clk 0:02:56.9]}
10. Nf3 {[%clk 0:02:55.6]} 10... b5 {[%clk 0:02:56.2]} 11. Rb1 {[%clk
0:02:54.1]} 11... a5 {[%clk 0:02:55.1]} 12. g4 {[%clk 0:02:49.6]} 12... f5
{[%clk 0:02:54.6]} 13. gxf5 {[%clk 0:02:09.7]} 13... gxf5 {[%clk 0:02:54.1]} 14.
Ng3 {[%clk 0:02:04.7]} 14... Qe8 {[%clk 0:02:26.6]} 15. Qe1 {[%clk 0:01:55]}
15... a4 {[%clk 0:02:21.9]} 16. e5 {[%clk 0:01:41.6]} 16... dxe5 {[%clk
0:02:18.1]} 17. Nxe5 {[%clk 0:01:38.5]} 17... Nxe5 {[%clk 0:02:14.1]} 18. fxe5
{[%clk 0:01:39.4]} 18... c4 {[%clk 0:01:59.3]} 19. d4 {[%clk 0:01:37.2]} 19...
Bb7 {[%clk 0:01:55.5]} 20. c3 {[%clk 0:01:27.2]} 20... Bxg2 {[%clk 0:01:54.6]}
21. Kxg2 {[%clk 0:01:27.2]} 21... Nd5 {[%clk 0:01:54.8]} 22. Bd2 {[%clk
0:01:25.7]} 22... f4 {[%clk 0:01:44.4]} 23. Ne4 {[%clk 0:01:24.5]} 23... Qh5
{[%clk 0:01:15.4]} 24. Kh1 {[%clk 0:01:05]} 24... Kh8 {[%clk 0:01:11.7]} 25. Rf2
{[%clk 0:00:53.8]} 25... Rf5 {[%clk 0:01:07.4]} 26. Qg1 {[%clk 0:00:46.1]} 26...
Rg8 {[%clk 0:01:04.9]} 27. Qd1 {[%clk 0:00:40.1]} 27... f3 {[%clk 0:01:03.2]}
28. Ng3 {[%clk 0:00:37.7]} 28... Qg4 {[%clk 0:01:00]} 29. Nxf5 {[%clk
0:00:35.5]} 29... Qxf5 {[%clk 0:01:00.3]} 30. Rc1 {[%clk 0:00:23.1]} 30... Rf8
{[%clk 0:00:59.4]} 31. Qc2 {[%clk 0:00:21.3]} 31... Qh3 {[%clk 0:00:51.9]} 32.
Rg1 {[%clk 0:00:19.6]} 32... Rf5 {[%clk 0:00:40.9]} 33. Bc1 {[%clk 0:00:16]}
33... Bh6 {[%clk 0:00:35.9]} 34. Bxh6 {[%clk 0:00:14.2]} 34... Qxh6 {[%clk
0:00:36]} 35. Qe4 {[%clk 0:00:14]} 35... Rf4 {[%clk 0:00:27.2]} 36. Qe1 {[%clk
0:00:14]} 36... Rh4 {[%clk 0:00:20.2]} 37. Rg3 {[%clk 0:00:11.6]} 37... Rf4
{[%clk 0:00:07]} 38. Rgxf3 {[%clk 0:00:11.2]} 38... a3 {[%clk 0:00:06.7]} 39.
bxa3 {[%clk 0:00:09.5]} 39... Rxf3 {[%clk 0:00:06.6]} 40. Rxf3 {[%clk 0:00:10]}
40... Qg5 {[%clk 0:00:06.8]} 41. Qg3 {[%clk 0:00:09.4]} 41... Qc1+ {[%clk
0:00:06.2]} 42. Qg1 {[%clk 0:00:09.4]} 42... Qh6 {[%clk 0:00:04.5]} 43. Rf7
{[%clk 0:00:05.6]} 43... Nxc3 {[%clk 0:00:02.4]} 44. Rf6 {[%clk 0:00:05.3]}
44... Qg7 {[%clk 0:00:01.5]} 45. Qxg7+ {[%clk 0:00:04.5]} 45... Kxg7 {[%clk
0:00:02.4]} 46. Rxe6 {[%clk 0:00:05.1]} 46... Ne4 {[%clk 0:00:02.1]} 47. Rc6
{[%clk 0:00:05.1]} 47... c3 {[%clk 0:00:02.1]} 48. d5 {[%clk 0:00:05.4]} 48...
Kf7 {[%clk 0:00:02]} 49. e6+ {[%clk 0:00:05.2]} 49... Ke7 {[%clk 0:00:02.2]} 50.
Kg2 {[%clk 0:00:05.4]} 50... h5 {[%clk 0:00:02.3]} 51. Kf3 {[%clk 0:00:05.7]}
51... Nd6 {[%clk 0:00:02.9]} 52. Rxc3 {[%clk 0:00:05.9]} 52... Nf5 {[%clk
0:00:03.2]} 53. Rc5 {[%clk 0:00:05.2]} 53... Nd4+ {[%clk 0:00:03.3]} 54. Ke4
{[%clk 0:00:05.6]} 54... Nc2 {[%clk 0:00:03.9]} 55. Rxc2 {[%clk 0:00:05.6]}
55... b4 {[%clk 0:00:04.5]} 56. Rc5 {[%clk 0:00:05.8]} 56... b3 {[%clk
0:00:04.2]} 57. axb3 {[%clk 0:00:06]} 57... h4 {[%clk 0:00:04.5]} 58. Kd4 {[%clk
0:00:06.7]} 58... h3 {[%clk 0:00:05.4]} 59. Ke5 {[%clk 0:00:07.1]} 59... Kd8
{[%clk 0:00:05.7]} 60. d6 {[%clk 0:00:07.1]} 60... Ke8 {[%clk 0:00:06]} 61. Rc8#
{[%clk 0:00:07.9]} 1-0

[Event "*** Titled Tuesday Blitz"]
[Site "Chess.com"]
[Date "2020.11.10"]
[Round "3"]
[White "Andrii_Prydun"]
[Black "anon102030"]
[Result "0-1"]
[WhiteElo "2363"]
[BlackElo "2734"]
[TimeControl "180+1"]
[EndTime "10:32:48 PST"]
[Termination "anon102030 won on time"]

1. d4 {[%clk 0:03:00.9]} 1... Nf6 {[%clk 0:02:58.7]} 2. Nc3 {[%clk 0:03:01.3]}
2... d5 {[%clk 0:02:56]} 3. Bf4 {[%clk 0:03:00.2]} 3... e6 {[%clk 0:02:52.3]} 4.
Nb5 {[%clk 0:03:00]} 4... Na6 {[%clk 0:02:48.9]} 5. e3 {[%clk 0:03:00.1]} 5...
c6 {[%clk 0:02:47.4]} 6. Nc3 {[%clk 0:03:00.2]} 6... Nc7 {[%clk 0:02:47]} 7. Nf3
{[%clk 0:02:59.4]} 7... Bb4 {[%clk 0:02:36]} 8. Nd2 {[%clk 0:02:59.4]} 8... O-O
{[%clk 0:02:31.4]} 9. a3 {[%clk 0:02:59]} 9... Bd6 {[%clk 0:02:26.9]} 10. Bg3
{[%clk 0:02:56.9]} 10... Re8 {[%clk 0:02:23.3]} 11. Bd3 {[%clk 0:02:54.4]} 11...
e5 {[%clk 0:02:18.5]} 12. dxe5 {[%clk 0:02:53.4]} 12... Bxe5 {[%clk 0:02:19.4]}
13. O-O {[%clk 0:02:52.7]} 13... Bg4 {[%clk 0:02:12.7]} 14. Be2 {[%clk
0:02:44.8]} 14... Bxe2 {[%clk 0:02:08.2]} 15. Qxe2 {[%clk 0:02:45.7]} 15... Bxg3
{[%clk 0:02:04.4]} 16. hxg3 {[%clk 0:02:46.6]} 16... d4 {[%clk 0:02:03.9]} 17.
Nd1 {[%clk 0:02:46.8]} 17... Ncd5 {[%clk 0:02:00.6]} 18. e4 {[%clk 0:02:45]}
18... Nxe4 {[%clk 0:01:58.2]} 19. Nxe4 {[%clk 0:02:44.1]} 19... f5 {[%clk
0:01:58.8]} 20. Qd3 {[%clk 0:02:22.8]} 20... Rxe4 {[%clk 0:01:57.6]} 21. f3
{[%clk 0:02:22.6]} 21... Re5 {[%clk 0:01:49.6]} 22. Qxd4 {[%clk 0:02:21.6]}
22... Qe7 {[%clk 0:01:47]} 23. Nf2 {[%clk 0:02:18.6]} 23... Ne3 {[%clk
0:01:46.1]} 24. Rfe1 {[%clk 0:02:18.2]} 24... Re8 {[%clk 0:01:39.2]} 25. Nd3
{[%clk 0:02:15.7]} 25... Re6 {[%clk 0:01:37.3]} 26. Nf4 {[%clk 0:02:13.7]} 26...
Re5 {[%clk 0:01:26.9]} 27. Re2 {[%clk 0:02:03.3]} 27... c5 {[%clk 0:01:23.7]}
28. Qc3 {[%clk 0:02:00.7]} 28... Qd6 {[%clk 0:01:13.6]} 29. Rae1 {[%clk
0:01:51.1]} 29... Qd4 {[%clk 0:01:13.7]} 30. Qxd4 {[%clk 0:01:34.9]} 30... cxd4
{[%clk 0:01:14.6]} 31. c3 {[%clk 0:01:35.2]} 31... dxc3 {[%clk 0:01:00.3]} 32.
bxc3 {[%clk 0:01:29.2]} 32... Kf7 {[%clk 0:01:00.6]} 33. Nd3 {[%clk 0:01:06.7]}
33... R5e7 {[%clk 0:00:59.3]} 34. Nb2 {[%clk 0:00:51.3]} 34... Nd5 {[%clk
0:00:56.1]} 35. Rxe7+ {[%clk 0:00:48]} 35... Rxe7 {[%clk 0:00:57]} 36. Rxe7+
{[%clk 0:00:46.7]} 36... Kxe7 {[%clk 0:00:57.9]} 37. c4 {[%clk 0:00:45.9]} 37...
Nc3 {[%clk 0:00:53]} 38. Kf2 {[%clk 0:00:44.8]} 38... Kd6 {[%clk 0:00:51.8]} 39.
Ke3 {[%clk 0:00:44.8]} 39... Nb1 {[%clk 0:00:47.3]} 40. Kd3 {[%clk 0:00:22.3]}
40... Nxa3 {[%clk 0:00:44.5]} 41. Kc3 {[%clk 0:00:22.5]} 41... b5 {[%clk
0:00:41.6]} 42. cxb5 {[%clk 0:00:06.1]} 42... Nxb5+ {[%clk 0:00:42.5]} 43. Kc4
{[%clk 0:00:06.5]} 43... Kc6 {[%clk 0:00:34.9]} 44. Nd1 {[%clk 0:00:06.9]} 44...
Nd6+ {[%clk 0:00:27.8]} 45. Kb4 {[%clk 0:00:06.7]} 45... Kd5 {[%clk 0:00:25.7]}
46. Kc3 {[%clk 0:00:06.5]} 46... g6 {[%clk 0:00:23]} 47. Ne3+ {[%clk 0:00:06.6]}
47... Kc5 {[%clk 0:00:23.7]} 48. g4 {[%clk 0:00:04.9]} 48... f4 {[%clk
0:00:22.6]} 49. Nc2 {[%clk 0:00:04.9]} 49... a5 {[%clk 0:00:20.6]} 50. Kd3
{[%clk 0:00:03.5]} 50... Kd5 {[%clk 0:00:19.8]} 51. Nd4 {[%clk 0:00:03.1]} 51...
a4 {[%clk 0:00:17.7]} 52. Ne2 {[%clk 0:00:03.3]} 52... Ke5 {[%clk 0:00:15.5]}
53. Kc3 {[%clk 0:00:02.6]} 53... g5 {[%clk 0:00:13.9]} 54. Kb4 {[%clk
0:00:02.7]} 54... a3 {[%clk 0:00:12.9]} 55. Kxa3 {[%clk 0:00:02.9]} 55... Nc4+
{[%clk 0:00:13.6]} 56. Kb4 {[%clk 0:00:03.3]} 56... Ne3 {[%clk 0:00:13.8]} 57.
g3 {[%clk 0:00:03]} 57... fxg3 {[%clk 0:00:13.7]} 58. Nxg3 {[%clk 0:00:03.2]}
58... Kf4 {[%clk 0:00:13.7]} 59. Ne4 {[%clk 0:00:03.5]} 59... Nxg4 {[%clk
0:00:12.7]} 0-1

[Event "*** Titled Tuesday Blitz"]
[Site "Chess.com"]
[Date "2020.11.10"]
[Round "3"]
[White "davidkalashian"]
[Black "Flopezin"]
[Result "1-0"]
[WhiteElo "2611"]
[BlackElo "2394"]
[TimeControl "180+1"]
[EndTime "10:32:48 PST"]
[Termination "davidkalashian won by checkmate"]

1. d4 {[%clk 0:03:00.9]} 1... Nf6 {[%clk 0:02:59.7]} 2. c4 {[%clk 0:02:59.8]}
2... e6 {[%clk 0:03:00.2]} 3. Nf3 {[%clk 0:02:59.1]} 3... c5 {[%clk 0:03:00.2]}
4. g3 {[%clk 0:02:58.4]} 4... cxd4 {[%clk 0:02:56.5]} 5. Nxd4 {[%clk 0:02:59.3]}
5... Nc6 {[%clk 0:02:56.7]} 6. Bg2 {[%clk 0:02:58.5]} 6... Bb4+ {[%clk
0:02:45.6]} 7. Nc3 {[%clk 0:02:57.5]} 7... O-O {[%clk 0:02:41.7]} 8. O-O {[%clk
0:02:56.9]} 8... Bxc3 {[%clk 0:02:41]} 9. bxc3 {[%clk 0:02:56.6]} 9... d5 {[%clk
0:02:41.9]} 10. Qa4 {[%clk 0:02:03.5]} 10... Bd7 {[%clk 0:02:37.7]} 11. cxd5
{[%clk 0:01:57.7]} 11... Nxd4 {[%clk 0:02:26.5]} 12. Qxd4 {[%clk 0:01:56.6]}
12... Nxd5 {[%clk 0:02:25.1]} 13. Bb2 {[%clk 0:01:52.6]} 13... Bc6 {[%clk
0:02:21.1]} 14. Rfd1 {[%clk 0:01:42.3]} 14... Qf6 {[%clk 0:01:55.9]} 15. Qxf6
{[%clk 0:01:31.6]} 15... Nxf6 {[%clk 0:01:46.3]} 16. Bxc6 {[%clk 0:01:32.5]}
16... bxc6 {[%clk 0:01:47.2]} 17. c4 {[%clk 0:01:31.6]} 17... Rfd8 {[%clk
0:01:44.5]} 18. f3 {[%clk 0:01:27.6]} 18... Kf8 {[%clk 0:01:36.4]} 19. Kf2
{[%clk 0:01:26.1]} 19... Nd7 {[%clk 0:01:22]} 20. Rd6 {[%clk 0:01:23]} 20... Nb6
{[%clk 0:01:05.3]} 21. Rxc6 {[%clk 0:01:19.2]} 21... Rd2 {[%clk 0:01:05.6]} 22.
Ba3+ {[%clk 0:00:55.2]} 22... Kg8 {[%clk 0:00:59.8]} 23. Bb4 {[%clk 0:00:17.2]}
23... Rc2 {[%clk 0:00:55.6]} 24. Rd1 {[%clk 0:00:17.4]} 24... Rxc4 {[%clk
0:00:43.4]} 25. Rxc4 {[%clk 0:00:15.8]} 25... Nxc4 {[%clk 0:00:44.3]} 26. Rd7
{[%clk 0:00:16.3]} 26... a5 {[%clk 0:00:41.8]} 27. Bc3 {[%clk 0:00:16.7]} 27...
Rc8 {[%clk 0:00:36.2]} 28. Ra7 {[%clk 0:00:16.2]} 28... h6 {[%clk 0:00:20.3]}
29. Bxa5 {[%clk 0:00:16.5]} 29... Nd6 {[%clk 0:00:20.4]} 30. Bb4 {[%clk
0:00:16.1]} 30... Nf5 {[%clk 0:00:18.8]} 31. g4 {[%clk 0:00:14.9]} 31... Nd4
{[%clk 0:00:18.5]} 32. Rd7 {[%clk 0:00:15.4]} 32... Nc6 {[%clk 0:00:16.8]} 33.
Bd2 {[%clk 0:00:15.9]} 33... Ne5 {[%clk 0:00:15.9]} 34. Rb7 {[%clk 0:00:15.9]}
34... Rc2 {[%clk 0:00:15.5]} 35. Bf4 {[%clk 0:00:15.5]} 35... Nd3+ {[%clk
0:00:15.6]} 36. Ke3 {[%clk 0:00:15.9]} 36... Nxf4 {[%clk 0:00:16.2]} 37. Kxf4
{[%clk 0:00:16.8]} 37... Rxa2 {[%clk 0:00:16.5]} 38. Ke3 {[%clk 0:00:16.5]}
38... Ra3+ {[%clk 0:00:16.5]} 39. Kf2 {[%clk 0:00:16.7]} 39... Ra8 {[%clk
0:00:16.7]} 40. h4 {[%clk 0:00:17]} 40... g6 {[%clk 0:00:16.3]} 41. g5 {[%clk
0:00:16.5]} 41... Kg7 {[%clk 0:00:17.2]} 42. gxh6+ {[%clk 0:00:15.7]} 42... Kf6
{[%clk 0:00:17.7]} 43. Kg3 {[%clk 0:00:15]} 43... Rh8 {[%clk 0:00:18.3]} 44. e4
{[%clk 0:00:15.7]} 44... Rxh6 {[%clk 0:00:18.6]} 45. Kg4 {[%clk 0:00:16.6]}
45... e5 {[%clk 0:00:18.5]} 46. Rb6+ {[%clk 0:00:16.1]} 46... Kg7 {[%clk
0:00:18.7]} 47. Rb5 {[%clk 0:00:16.9]} 47... Rh5 {[%clk 0:00:17.4]} 48. Rc5
{[%clk 0:00:16]} 48... f5+ {[%clk 0:00:17.2]} 49. exf5 {[%clk 0:00:14.8]} 49...
Rxf5 {[%clk 0:00:18.1]} 50. Rd5 {[%clk 0:00:14.9]} 50... Rf4+ {[%clk 0:00:17.1]}
51. Kg3 {[%clk 0:00:15.2]} 51... Rf5 {[%clk 0:00:17.1]} 52. Rd7+ {[%clk
0:00:15.7]} 52... Kf6 {[%clk 0:00:17.5]} 53. Ra7 {[%clk 0:00:15]} 53... Ke6
{[%clk 0:00:17.8]} 54. Ra8 {[%clk 0:00:14.3]} 54... Kf6 {[%clk 0:00:18.7]} 55.
Rf8+ {[%clk 0:00:13.5]} 55... Kg7 {[%clk 0:00:19]} 56. Re8 {[%clk 0:00:13.9]}
56... Kf6 {[%clk 0:00:19]} 57. Ra8 {[%clk 0:00:13.6]} 57... Kg7 {[%clk
0:00:19.2]} 58. Kg4 {[%clk 0:00:14]} 58... Rf4+ {[%clk 0:00:19.1]} 59. Kg3
{[%clk 0:00:13.9]} 59... Rf5 {[%clk 0:00:19.6]} 60. Ra6 {[%clk 0:00:13.8]} 60...
Kh6 {[%clk 0:00:18.2]} 61. Re6 {[%clk 0:00:12.3]} 61... Kh5 {[%clk 0:00:17.7]}
62. Re8 {[%clk 0:00:10.4]} 62... Kh6 {[%clk 0:00:17.9]} 63. Re7 {[%clk
0:00:10.7]} 63... Kh5 {[%clk 0:00:18.3]} 64. Rh7# {[%clk 0:00:10]} 1-0

[Event "*** Titled Tuesday Blitz"]
[Site "Chess.com"]
[Date "2020.11.10"]
[Round "3"]
[White "Ave_Mariia"]
[Black "Sergienko_Sergey"]
[Result "0-1"]
[WhiteElo "2507"]
[BlackElo "2302"]
[TimeControl "180+1"]
[EndTime "10:32:51 PST"]
[Termination "Sergienko_Sergey won by resignation"]

1. d4 {[%clk 0:03:00.9]} 1... Nf6 {[%clk 0:02:58.6]} 2. c4 {[%clk 0:03:00.8]}
2... c5 {[%clk 0:02:58]} 3. d5 {[%clk 0:03:00.2]} 3... e5 {[%clk 0:02:57.1]} 4.
g3 {[%clk 0:02:52.3]} 4... d6 {[%clk 0:02:56.2]} 5. Bg2 {[%clk 0:02:52.5]} 5...
Be7 {[%clk 0:02:56]} 6. Nc3 {[%clk 0:02:52.7]} 6... O-O {[%clk 0:02:55.5]} 7.
Nf3 {[%clk 0:02:44.4]} 7... Ne8 {[%clk 0:02:53.8]} 8. e4 {[%clk 0:02:41.9]} 8...
g6 {[%clk 0:02:51.9]} 9. O-O {[%clk 0:02:41.3]} 9... Ng7 {[%clk 0:02:51.1]} 10.
Bh6 {[%clk 0:02:34.5]} 10... Nd7 {[%clk 0:02:48.5]} 11. Nd2 {[%clk 0:02:25.8]}
11... Nf6 {[%clk 0:02:45.5]} 12. f4 {[%clk 0:02:19]} 12... Ng4 {[%clk
0:02:39.9]} 13. Bxg7 {[%clk 0:02:18]} 13... Kxg7 {[%clk 0:02:39.5]} 14. Qf3
{[%clk 0:02:17.6]} 14... f6 {[%clk 0:02:25.9]} 15. h3 {[%clk 0:01:57.5]} 15...
Nh6 {[%clk 0:02:24.9]} 16. g4 {[%clk 0:01:58]} 16... exf4 {[%clk 0:02:16.2]} 17.
Qxf4 {[%clk 0:01:58.9]} 17... Nf7 {[%clk 0:02:11.2]} 18. Nf3 {[%clk 0:01:58.1]}
18... Ne5 {[%clk 0:02:04.8]} 19. Qg3 {[%clk 0:01:56]} 19... Nxc4 {[%clk
0:01:55]} 20. e5 {[%clk 0:01:37.5]} 20... fxe5 {[%clk 0:01:30.5]} 21. b3 {[%clk
0:01:31.6]} 21... Ne3 {[%clk 0:01:24]} 22. Rfe1 {[%clk 0:01:28.9]} 22... Nc2
{[%clk 0:01:01.2]} 23. Ne4 {[%clk 0:01:25.2]} 23... Nxa1 {[%clk 0:00:55.7]} 24.
Rxa1 {[%clk 0:01:24.7]} 24... Rf4 {[%clk 0:00:49.2]} 25. Re1 {[%clk 0:01:21.5]}
25... Bd7 {[%clk 0:00:43.1]} 26. Nfd2 {[%clk 0:00:56.5]} 26... Bh4 {[%clk
0:00:38.3]} 27. Qe3 {[%clk 0:00:55.1]} 27... Bxe1 {[%clk 0:00:35.9]} 28. Qxe1
{[%clk 0:00:56]} 28... Qe7 {[%clk 0:00:31.3]} 29. Nc4 {[%clk 0:00:55.6]} 29...
Rxe4 {[%clk 0:00:25.5]} 30. Qxe4 {[%clk 0:00:56.5]} 30... Rf8 {[%clk 0:00:24.7]}
31. Kh2 {[%clk 0:00:42.1]} 31... b5 {[%clk 0:00:23.7]} 32. Na5 {[%clk
0:00:38.5]} 32... Qg5 {[%clk 0:00:20.4]} 33. Nb7 {[%clk 0:00:33.3]} 33... Rf4
{[%clk 0:00:19.1]} 34. Qe2 {[%clk 0:00:31.1]} 34... Qf6 {[%clk 0:00:17.7]} 35.
Qe3 {[%clk 0:00:11.4]} 35... Bc8 {[%clk 0:00:15.7]} 36. Na5 {[%clk 0:00:11]}
36... Rf2 {[%clk 0:00:13.4]} 37. a3 {[%clk 0:00:07.7]} 37... Qf4+ {[%clk
0:00:12.8]} 38. Qxf4 {[%clk 0:00:08]} 38... Rxf4 {[%clk 0:00:12.7]} 39. Nc6
{[%clk 0:00:05.6]} 39... Rf7 {[%clk 0:00:12.4]} 40. Nd8 {[%clk 0:00:05]} 40...
Rc7 {[%clk 0:00:11]} 41. Ne6+ {[%clk 0:00:04.9]} 41... Bxe6 {[%clk 0:00:10.3]}
42. dxe6 {[%clk 0:00:05.8]} 42... Kf6 {[%clk 0:00:09.9]} 43. Bd5 {[%clk
0:00:06.7]} 43... Re7 {[%clk 0:00:09.1]} 44. Kg3 {[%clk 0:00:06.8]} 44... Rxe6
{[%clk 0:00:08.9]} 45. g5+ {[%clk 0:00:07.4]} 45... Kf5 {[%clk 0:00:07.2]} 46.
Kf3 {[%clk 0:00:04.6]} 46... Re7 {[%clk 0:00:07.1]} 47. h4 {[%clk 0:00:04.8]}
47... e4+ {[%clk 0:00:06.8]} 48. Ke3 {[%clk 0:00:05.1]} 48... Ke5 {[%clk
0:00:07.2]} 49. Bxe4 {[%clk 0:00:04.4]} 49... d5 {[%clk 0:00:06.2]} 50. Bf3
{[%clk 0:00:03.4]} 50... c4 {[%clk 0:00:06.2]} 51. bxc4 {[%clk 0:00:03.6]} 51...
bxc4 {[%clk 0:00:06.2]} 52. Bg4 {[%clk 0:00:03.3]} 52... d4+ {[%clk 0:00:06.2]}
53. Kd2 {[%clk 0:00:03.9]} 53... Kf4 {[%clk 0:00:06]} 54. Bc8 {[%clk 0:00:03.9]}
54... Rc7 {[%clk 0:00:05.5]} 55. Ba6 {[%clk 0:00:03.9]} 55... d3 {[%clk
0:00:04.8]} 56. Kc3 {[%clk 0:00:02.6]} 56... Ke3 {[%clk 0:00:04.7]} 0-1